[Event "*** SCC Grand Prix: Titled Tuesday Blitz"]
[Site "Chess.com"]
[Date "2020.10.13"]
[Round "3"]
[White "sergeikim"]
[Black "janumber1"]
[Result "1-0"]
[WhiteElo "2505"]
[BlackElo "2175"]
[TimeControl "180+1"]
[EndTime "10:28:40 PDT"]
[Termination "sergeikim won by resignation"]

1. d4 {[%clk 0:03:00.9]} 1... Nf6 {[%clk 0:03:00.9]} 2. c4 {[%clk 0:03:00.7]}
2... c5 {[%clk 0:03:00.7]} 3. d5 {[%clk 0:03:00.2]} 3... e6 {[%clk 0:03:00.4]}
4. Nc3 {[%clk 0:03:00.2]} 4... exd5 {[%clk 0:02:58.2]} 5. cxd5 {[%clk
0:03:01.1]} 5... d6 {[%clk 0:02:57.9]} 6. e4 {[%clk 0:03:01.1]} 6... g6 {[%clk
0:02:56.8]} 7. Nge2 {[%clk 0:03:01.6]} 7... Bg7 {[%clk 0:02:55.8]} 8. Ng3 {[%clk
0:03:02.2]} 8... Na6 {[%clk 0:02:43.6]} 9. Be2 {[%clk 0:03:01.5]} 9... Nc7
{[%clk 0:02:42.2]} 10. O-O {[%clk 0:03:01.4]} 10... a6 {[%clk 0:02:40.4]} 11. a4
{[%clk 0:03:01.4]} 11... Rb8 {[%clk 0:02:38.9]} 12. Bf4 {[%clk 0:03:00.1]} 12...
h5 {[%clk 0:02:18]} 13. e5 {[%clk 0:02:53.1]} 13... dxe5 {[%clk 0:02:16.8]} 14.
Bxe5 {[%clk 0:02:54]} 14... O-O {[%clk 0:02:10.7]} 15. Bf3 {[%clk 0:02:39.3]}
15... Bg4 {[%clk 0:02:00.4]} 16. Bxg4 {[%clk 0:02:29.8]} 16... Nxg4 {[%clk
0:01:59.1]} 17. Bxg7 {[%clk 0:02:29]} 17... Kxg7 {[%clk 0:01:59.2]} 18. h3
{[%clk 0:02:20.8]} 18... Nf6 {[%clk 0:01:55.2]} 19. d6 {[%clk 0:02:10.6]} 19...
Ne6 {[%clk 0:01:53.2]} 20. Re1 {[%clk 0:02:05.8]} 20... Nd4 {[%clk 0:01:51.4]}
21. Nge4 {[%clk 0:02:03.9]} 21... b6 {[%clk 0:01:45.2]} 22. b4 {[%clk
0:01:59.2]} 22... Ne6 {[%clk 0:01:14.9]} 23. bxc5 {[%clk 0:01:37.7]} 23... bxc5
{[%clk 0:01:08]} 24. Qd3 {[%clk 0:01:28.3]} 24... Rb6 {[%clk 0:01:00.1]} 25. a5
{[%clk 0:01:25.2]} 25... Rb4 {[%clk 0:00:56.5]} 26. Qxa6 {[%clk 0:01:23.7]}
26... Nxe4 {[%clk 0:00:53.6]} 27. Nxe4 {[%clk 0:01:23.2]} 27... Rd4 {[%clk
0:00:44.8]} 28. Qb7 {[%clk 0:01:12.2]} 28... Kg8 {[%clk 0:00:40.4]} 29. a6
{[%clk 0:01:09.4]} 29... f5 {[%clk 0:00:37.3]} 30. a7 {[%clk 0:01:02.8]} 30...
fxe4 {[%clk 0:00:28.2]} 31. a8=Q {[%clk 0:01:01.9]} 31... Qf6 {[%clk 0:00:28.1]}
32. Qxf8+ {[%clk 0:00:53.1]} 32... Nxf8 {[%clk 0:00:27]} 33. Ra8 {[%clk
0:00:49.8]} 33... Qxd6 {[%clk 0:00:20.7]} 34. Ra7 {[%clk 0:00:44.2]} 34... Qd7
{[%clk 0:00:19.1]} 35. Qb8 {[%clk 0:00:39.2]} 35... Qd8 {[%clk 0:00:17.3]} 36.
Qe5 {[%clk 0:00:36.8]} 36... Rd7 {[%clk 0:00:14.5]} 37. Qxc5 {[%clk 0:00:31.7]}
37... Rxa7 {[%clk 0:00:13.2]} 38. Qxa7 {[%clk 0:00:31.6]} 38... Qd4 {[%clk
0:00:11]} 39. Qxd4 {[%clk 0:00:30.8]} 1-0

[Event "*** SCC Grand Prix: Titled Tuesday Blitz"]
[Site "Chess.com"]
[Date "2020.10.13"]
[Round "3"]
[White "Steven_Rojas"]
[Black "Witik"]
[Result "1-0"]
[WhiteElo "2466"]
[BlackElo "2733"]
[TimeControl "180+1"]
[EndTime "10:28:41 PDT"]
[Termination "Steven_Rojas won by resignation"]

1. c4 {[%clk 0:03:00.9]} 1... e5 {[%clk 0:02:59.1]} 2. Nc3 {[%clk 0:03:00.9]}
2... Bb4 {[%clk 0:02:59]} 3. Nd5 {[%clk 0:03:00.5]} 3... a5 {[%clk 0:02:58.6]}
4. a3 {[%clk 0:02:58]} 4... Be7 {[%clk 0:02:47.1]} 5. d4 {[%clk 0:02:54.1]} 5...
exd4 {[%clk 0:02:41.1]} 6. Qxd4 {[%clk 0:02:48.2]} 6... Nf6 {[%clk 0:02:40.9]}
7. Nxe7 {[%clk 0:02:33.5]} 7... Qxe7 {[%clk 0:02:40.6]} 8. Bg5 {[%clk
0:02:26.6]} 8... Nc6 {[%clk 0:02:40.4]} 9. Qc3 {[%clk 0:02:22.8]} 9... Ne5
{[%clk 0:01:49.8]} 10. Nf3 {[%clk 0:02:13.2]} 10... d6 {[%clk 0:01:44.5]} 11.
Nxe5 {[%clk 0:02:04.6]} 11... dxe5 {[%clk 0:01:45.4]} 12. g3 {[%clk 0:01:52.2]}
12... h6 {[%clk 0:01:28.4]} 13. Bxf6 {[%clk 0:01:39.3]} 13... Qxf6 {[%clk
0:01:29.3]} 14. Bg2 {[%clk 0:01:38.8]} 14... O-O {[%clk 0:01:28.2]} 15. O-O
{[%clk 0:01:35.8]} 15... c6 {[%clk 0:01:27.5]} 16. Rad1 {[%clk 0:01:29.6]} 16...
Bg4 {[%clk 0:01:25]} 17. Rd2 {[%clk 0:00:53.7]} 17... Rfd8 {[%clk 0:01:12.9]}
18. Qe3 {[%clk 0:00:46.1]} 18... Rxd2 {[%clk 0:01:09.7]} 19. Qxd2 {[%clk
0:00:47]} 19... Rd8 {[%clk 0:01:09.7]} 20. Qxa5 {[%clk 0:00:46.1]} 20... Bxe2
{[%clk 0:01:08.6]} 21. Re1 {[%clk 0:00:46.7]} 21... Bxc4 {[%clk 0:01:07.9]} 22.
Qc7 {[%clk 0:00:44.3]} 22... Rd2 {[%clk 0:01:03]} 23. f4 {[%clk 0:00:26.7]}
23... exf4 {[%clk 0:00:56.2]} 24. Re8+ {[%clk 0:00:23.2]} 24... Kh7 {[%clk
0:00:56.1]} 25. Be4+ {[%clk 0:00:22.9]} 25... g6 {[%clk 0:00:56.4]} 26. Qxf4
{[%clk 0:00:16.3]} 26... Qd4+ {[%clk 0:00:45.7]} 27. Kh1 {[%clk 0:00:15]} 27...
Rf2 {[%clk 0:00:32.5]} 28. Bxg6+ {[%clk 0:00:09.6]} 28... Kxg6 {[%clk
0:00:22.8]} 29. Qxd4 {[%clk 0:00:09.8]} 29... Bd5+ {[%clk 0:00:19.1]} 30. Kg1
{[%clk 0:00:10.3]} 30... Rg2+ {[%clk 0:00:18.4]} 31. Kf1 {[%clk 0:00:10.6]}
31... f6 {[%clk 0:00:17.8]} 32. Qxd5 {[%clk 0:00:08.4]} 1-0

[Event "*** SCC Grand Prix: Titled Tuesday Blitz"]
[Site "Chess.com"]
[Date "2020.10.13"]
[Round "3"]
[White "nitpicker"]
[Black "C_K_G"]
[Result "1-0"]
[WhiteElo "2280"]
[BlackElo "2020"]
[TimeControl "180+1"]
[EndTime "10:28:41 PDT"]
[Termination "nitpicker won on time"]

1. d4 {[%clk 0:03:00.9]} 1... d5 {[%clk 0:02:57.6]} 2. c4 {[%clk 0:03:00.8]}
2... e6 {[%clk 0:02:57.5]} 3. Nf3 {[%clk 0:02:59.9]} 3... Nf6 {[%clk 0:02:56.7]}
4. g3 {[%clk 0:02:58.9]} 4... c6 {[%clk 0:02:56]} 5. Qc2 {[%clk 0:02:57.7]} 5...
Nbd7 {[%clk 0:02:55.8]} 6. Bg2 {[%clk 0:02:55.6]} 6... Bd6 {[%clk 0:02:51.4]} 7.
Nbd2 {[%clk 0:02:55.1]} 7... O-O {[%clk 0:02:50.8]} 8. O-O {[%clk 0:02:55]} 8...
Re8 {[%clk 0:02:31.9]} 9. Rd1 {[%clk 0:02:54.5]} 9... b6 {[%clk 0:02:20.8]} 10.
e4 {[%clk 0:02:27.8]} 10... dxe4 {[%clk 0:02:13.8]} 11. Ng5 {[%clk 0:02:27.8]}
11... Bb7 {[%clk 0:02:10.8]} 12. Ndxe4 {[%clk 0:02:24.6]} 12... Nxe4 {[%clk
0:01:58.9]} 13. Bxe4 {[%clk 0:02:14.1]} 13... h6 {[%clk 0:01:47.2]} 14. Nf3
{[%clk 0:01:39.5]} 14... Qc7 {[%clk 0:01:35.1]} 15. b3 {[%clk 0:01:31.8]} 15...
f5 {[%clk 0:01:00.6]} 16. Bd3 {[%clk 0:01:31.7]} 16... c5 {[%clk 0:00:49.4]} 17.
d5 {[%clk 0:01:31.9]} 17... exd5 {[%clk 0:00:46.8]} 18. Bxf5 {[%clk 0:01:30.9]}
18... Ne5 {[%clk 0:00:44]} 19. Nh4 {[%clk 0:01:17.5]} 19... g5 {[%clk
0:00:17.2]} 20. Ng2 {[%clk 0:00:59]} 20... Nf3+ {[%clk 0:00:15.6]} 21. Kh1
{[%clk 0:00:58.9]} 21... d4 {[%clk 0:00:15.5]} 22. h4 {[%clk 0:00:48.9]} 22...
Qe7 {[%clk 0:00:14.7]} 23. Bg4 {[%clk 0:00:29.6]} 23... gxh4 {[%clk 0:00:13.2]}
24. Qg6+ {[%clk 0:00:28.6]} 24... Kh8 {[%clk 0:00:07.7]} 25. Qxh6+ {[%clk
0:00:27.8]} 25... Qh7 {[%clk 0:00:07.8]} 26. gxh4 {[%clk 0:00:19.1]} 26... Qxh6
{[%clk 0:00:06.4]} 27. Bxh6 {[%clk 0:00:18.8]} 27... Nxh4 {[%clk 0:00:06.6]} 28.
f3 {[%clk 0:00:18.9]} 28... Nxf3 {[%clk 0:00:04.8]} 29. Bxf3 {[%clk 0:00:15.3]}
1-0

[Event "*** SCC Grand Prix: Titled Tuesday Blitz"]
[Site "Chess.com"]
[Date "2020.10.13"]
[Round "3"]
[White "ChelsieMonica"]
[Black "romulocardoso"]
[Result "0-1"]
[WhiteElo "2367"]
[BlackElo "2087"]
[TimeControl "180+1"]
[EndTime "10:28:44 PDT"]
[Termination "romulocardoso won by resignation"]

1. c4 {[%clk 0:02:57]} 1... Nf6 {[%clk 0:02:25.2]} 2. Nc3 {[%clk 0:02:55.3]}
2... e6 {[%clk 0:02:25.2]} 3. Nf3 {[%clk 0:02:56.2]} 3... d5 {[%clk 0:02:25.2]}
4. e3 {[%clk 0:02:56.4]} 4... b6 {[%clk 0:02:24.6]} 5. d4 {[%clk 0:02:55.4]}
5... Bb7 {[%clk 0:02:24.6]} 6. Be2 {[%clk 0:02:53.1]} 6... Bb4 {[%clk
0:02:22.9]} 7. O-O {[%clk 0:02:53.2]} 7... O-O {[%clk 0:02:20.7]} 8. Ne5 {[%clk
0:02:50.7]} 8... Nbd7 {[%clk 0:02:20.6]} 9. f4 {[%clk 0:02:49.9]} 9... Rc8
{[%clk 0:02:18.4]} 10. Bd2 {[%clk 0:02:46]} 10... c5 {[%clk 0:02:17.6]} 11. a3
{[%clk 0:02:45.1]} 11... Bxc3 {[%clk 0:02:14.1]} 12. Bxc3 {[%clk 0:02:41.3]}
12... Ne4 {[%clk 0:02:13.6]} 13. cxd5 {[%clk 0:02:38.5]} 13... exd5 {[%clk
0:02:06.7]} 14. Bg4 {[%clk 0:02:29.4]} 14... f5 {[%clk 0:01:43.5]} 15. Bf3
{[%clk 0:02:26.6]} 15... cxd4 {[%clk 0:01:40.6]} 16. Qxd4 {[%clk 0:02:24.3]}
16... Nxc3 {[%clk 0:01:18.4]} 17. bxc3 {[%clk 0:02:25.2]} 17... Nf6 {[%clk
0:01:18.8]} 18. Rad1 {[%clk 0:02:22.4]} 18... Ne4 {[%clk 0:01:17.9]} 19. Bxe4
{[%clk 0:02:21]} 19... fxe4 {[%clk 0:01:18.8]} 20. c4 {[%clk 0:02:20]} 20... Rc5
{[%clk 0:01:13.1]} 21. cxd5 {[%clk 0:02:17.7]} 21... Rxd5 {[%clk 0:01:14]} 22.
Qc4 {[%clk 0:02:17.1]} 22... Kh8 {[%clk 0:01:14.1]} 23. Rd4 {[%clk 0:02:16.2]}
23... Rxd4 {[%clk 0:01:12.8]} 24. Qxd4 {[%clk 0:02:17.1]} 24... Qxd4 {[%clk
0:01:12.3]} 25. exd4 {[%clk 0:02:18]} 25... Kg8 {[%clk 0:01:08.3]} 26. g3 {[%clk
0:02:16.8]} 26... Rd8 {[%clk 0:01:07.9]} 27. Rd1 {[%clk 0:02:16.8]} 27... Kf8
{[%clk 0:00:56.7]} 28. Kf2 {[%clk 0:02:16.3]} 28... Ke7 {[%clk 0:00:56.6]} 29.
Ke3 {[%clk 0:02:15.3]} 29... Ke6 {[%clk 0:00:56.6]} 30. Rc1 {[%clk 0:02:14.9]}
30... Re8 {[%clk 0:00:49.8]} 31. Rc7 {[%clk 0:02:14]} 31... Re7 {[%clk
0:00:47.9]} 32. Rxe7+ {[%clk 0:02:14]} 32... Kxe7 {[%clk 0:00:48.8]} 33. Nc4
{[%clk 0:02:12.8]} 33... Ke6 {[%clk 0:00:47.3]} 34. Nd2 {[%clk 0:02:12.2]} 34...
Kf5 {[%clk 0:00:46.1]} 35. h3 {[%clk 0:02:12]} 35... h5 {[%clk 0:00:45.7]} 36.
Nb1 {[%clk 0:02:10]} 36... g5 {[%clk 0:00:44.3]} 37. Nc3 {[%clk 0:02:06.4]}
37... gxf4+ {[%clk 0:00:34.4]} 38. gxf4 {[%clk 0:02:07.3]} 38... h4 {[%clk
0:00:34.5]} 39. Nb5 {[%clk 0:02:06.4]} 39... Ke6 {[%clk 0:00:29.5]} 40. Nxa7
{[%clk 0:02:05.9]} 40... Kd5 {[%clk 0:00:29.6]} 41. Nb5 {[%clk 0:02:04.6]} 41...
Bc8 {[%clk 0:00:29.3]} 42. Nc3+ {[%clk 0:02:03.2]} 42... Kc4 {[%clk 0:00:29.1]}
43. Nxe4 {[%clk 0:02:03.1]} 43... Bxh3 {[%clk 0:00:29]} 44. f5 {[%clk
0:01:57.5]} 44... Kd5 {[%clk 0:00:18.6]} 45. Nc3+ {[%clk 0:01:55.1]} 45... Kd6
{[%clk 0:00:18]} 46. Kf4 {[%clk 0:01:54.3]} 46... Bxf5 {[%clk 0:00:16.6]} 47.
Kxf5 {[%clk 0:01:53.8]} 47... h3 {[%clk 0:00:17.5]} 48. Ne2 {[%clk 0:01:35.3]}
48... h2 {[%clk 0:00:18.4]} 49. Ng3 {[%clk 0:01:34.3]} 49... Kd5 {[%clk
0:00:19.3]} 50. Kf6 {[%clk 0:01:27.4]} 50... Kxd4 {[%clk 0:00:20.2]} 51. Ke6
{[%clk 0:01:26.7]} 51... Kc3 {[%clk 0:00:20.6]} 52. Kd5 {[%clk 0:01:25.9]} 52...
Kb3 {[%clk 0:00:21.5]} 53. Kc6 {[%clk 0:01:25.8]} 53... Kxa3 {[%clk 0:00:22.4]}
54. Kxb6 {[%clk 0:01:25.6]} 54... Kb3 {[%clk 0:00:23.3]} 55. Kc5 {[%clk
0:01:25.5]} 55... Kc3 {[%clk 0:00:24.2]} 56. Kd5 {[%clk 0:01:25.1]} 56... Kd3
{[%clk 0:00:25.1]} 57. Ke5 {[%clk 0:01:25.2]} 57... Ke3 {[%clk 0:00:26]} 58. Kf5
{[%clk 0:01:22.8]} 58... Kf3 {[%clk 0:00:26.9]} 59. Nh1 {[%clk 0:01:22.7]} 59...
Kg2 {[%clk 0:00:27.1]} 60. Kf4 {[%clk 0:01:17.1]} 60... Kxh1 {[%clk 0:00:28]}
61. Kg3 {[%clk 0:01:16.6]} 61... Kg1 {[%clk 0:00:28.9]} 0-1

[Event "*** SCC Grand Prix: Titled Tuesday Blitz"]
[Site "Chess.com"]
[Date "2020.10.13"]
[Round "3"]
[White "Ermito2020"]
[Black "vladislavkovalev"]
[Result "1-0"]
[WhiteElo "2666"]
[BlackElo "2853"]
[TimeControl "180+1"]
[EndTime "10:28:45 PDT"]
[Termination "Ermito2020 won by checkmate"]

1. e4 {[%clk 0:03:00.9]} 1... e5 {[%clk 0:02:58.3]} 2. Nf3 {[%clk 0:03:01.3]}
2... Nc6 {[%clk 0:02:58.5]} 3. d4 {[%clk 0:03:01.8]} 3... exd4 {[%clk
0:02:58.7]} 4. Bc4 {[%clk 0:03:02.3]} 4... Bc5 {[%clk 0:02:56]} 5. c3 {[%clk
0:03:00.6]} 5... Nf6 {[%clk 0:02:44.7]} 6. e5 {[%clk 0:03:00.5]} 6... d5 {[%clk
0:02:41.9]} 7. Bb5 {[%clk 0:02:59]} 7... Ne4 {[%clk 0:02:41.2]} 8. cxd4 {[%clk
0:02:59.5]} 8... Bb6 {[%clk 0:02:39.8]} 9. Nc3 {[%clk 0:02:58.4]} 9... O-O
{[%clk 0:02:39.7]} 10. Be3 {[%clk 0:02:57.3]} 10... Bg4 {[%clk 0:02:29.2]} 11.
h3 {[%clk 0:02:56.7]} 11... Bh5 {[%clk 0:02:29.2]} 12. Qb3 {[%clk 0:02:39.7]}
12... Bxf3 {[%clk 0:01:36.3]} 13. gxf3 {[%clk 0:02:38.3]} 13... Ng5 {[%clk
0:01:36.9]} 14. Bxc6 {[%clk 0:02:04.8]} 14... bxc6 {[%clk 0:01:31.5]} 15. Ke2
{[%clk 0:01:46.4]} 15... Ne6 {[%clk 0:01:28.1]} 16. Rad1 {[%clk 0:01:42]} 16...
f6 {[%clk 0:01:28.3]} 17. f4 {[%clk 0:01:40.9]} 17... fxe5 {[%clk 0:01:28.9]}
18. fxe5 {[%clk 0:01:40.5]} 18... Qh4 {[%clk 0:01:27.4]} 19. Qa4 {[%clk
0:01:31.8]} 19... Qh5+ {[%clk 0:00:18.7]} 20. Kd2 {[%clk 0:01:31.1]} 20... Nxd4
{[%clk 0:00:15.5]} 21. Bxd4 {[%clk 0:01:28.1]} 21... Rf4 {[%clk 0:00:16.1]} 22.
Ne2 {[%clk 0:01:23.3]} 22... Re4 {[%clk 0:00:16.5]} 23. Rhe1 {[%clk 0:00:51.6]}
23... Qh6+ {[%clk 0:00:08.5]} 24. Kc2 {[%clk 0:00:46.3]} 24... Qg6 {[%clk
0:00:06.4]} 25. Kc1 {[%clk 0:00:44.5]} 25... c5 {[%clk 0:00:06.8]} 26. Qd7
{[%clk 0:00:41]} 26... Kh8 {[%clk 0:00:03]} 27. Qxd5 {[%clk 0:00:39.3]} 27...
Re8 {[%clk 0:00:03.4]} 28. Bc3 {[%clk 0:00:38.2]} 28... c6 {[%clk 0:00:01.1]}
29. Qd3 {[%clk 0:00:35.2]} 29... c4 {[%clk 0:00:01.5]} 30. Qc2 {[%clk 0:00:35]}
30... Bxf2 {[%clk 0:00:01.8]} 31. Rf1 {[%clk 0:00:34.9]} 31... Be3+ {[%clk
0:00:02.4]} 32. Kb1 {[%clk 0:00:35.1]} 32... h6 {[%clk 0:00:03.1]} 33. Ng3
{[%clk 0:00:33.2]} 33... Qxg3 {[%clk 0:00:01.1]} 34. Qxe4 {[%clk 0:00:32.5]}
34... Bg5 {[%clk 0:00:02]} 35. e6 {[%clk 0:00:31.7]} 35... Qxh3 {[%clk
0:00:01.4]} 36. Rf7 {[%clk 0:00:31]} 36... Rxe6 {[%clk 0:00:01.2]} 37. Rf8#
{[%clk 0:00:27.4]} 1-0

[Event "*** SCC Grand Prix: Titled Tuesday Blitz"]
[Site "Chess.com"]
[Date "2020.10.13"]
[Round "3"]
[White "youngKID"]
[Black "TheMagnet"]
[Result "1-0"]
[WhiteElo "2817"]
[BlackElo "2606"]
[TimeControl "180+1"]
[EndTime "10:28:45 PDT"]
[Termination "youngKID won by resignation"]

1. Nf3 {[%clk 0:03:00.9]} 1... Nf6 {[%clk 0:02:59.4]} 2. d4 {[%clk 0:02:58.9]}
2... g6 {[%clk 0:02:59.3]} 3. Bg5 {[%clk 0:02:58.4]} 3... Bg7 {[%clk 0:02:59.5]}
4. Nbd2 {[%clk 0:02:58.9]} 4... O-O {[%clk 0:02:59.4]} 5. e3 {[%clk 0:02:59]}
5... d6 {[%clk 0:02:59.9]} 6. Bd3 {[%clk 0:02:51.2]} 6... c5 {[%clk 0:02:59.8]}
7. O-O {[%clk 0:02:49.2]} 7... Nbd7 {[%clk 0:02:54.2]} 8. c3 {[%clk 0:02:45.3]}
8... b6 {[%clk 0:02:54.1]} 9. Re1 {[%clk 0:02:40.6]} 9... Bb7 {[%clk 0:02:53.2]}
10. e4 {[%clk 0:02:41.2]} 10... h6 {[%clk 0:02:40.6]} 11. Be3 {[%clk 0:02:33]}
11... e5 {[%clk 0:02:27.2]} 12. h3 {[%clk 0:02:21.3]} 12... exd4 {[%clk
0:02:17.6]} 13. cxd4 {[%clk 0:02:19.6]} 13... Re8 {[%clk 0:02:17.9]} 14. d5
{[%clk 0:02:16.8]} 14... a6 {[%clk 0:02:14.4]} 15. a4 {[%clk 0:02:16.5]} 15...
Qc7 {[%clk 0:02:07.1]} 16. Qc2 {[%clk 0:02:10.3]} 16... Rab8 {[%clk 0:02:01.7]}
17. b4 {[%clk 0:01:54.7]} 17... Bxd5 {[%clk 0:01:50.1]} 18. exd5 {[%clk
0:01:52]} 18... Nxd5 {[%clk 0:01:51]} 19. Rab1 {[%clk 0:01:45.7]} 19... Nxe3
{[%clk 0:01:22.8]} 20. fxe3 {[%clk 0:01:38.8]} 20... Nf6 {[%clk 0:01:09.1]} 21.
e4 {[%clk 0:01:25.3]} 21... Qd7 {[%clk 0:01:02]} 22. Bxa6 {[%clk 0:01:20.9]}
22... Qe7 {[%clk 0:00:56.6]} 23. Bc4 {[%clk 0:01:14.5]} 23... Nh5 {[%clk
0:00:53.1]} 24. e5 {[%clk 0:01:09.3]} 24... dxe5 {[%clk 0:00:50.3]} 25. Qxg6
{[%clk 0:01:08.1]} 25... Nf4 {[%clk 0:00:48.4]} 26. Qe4 {[%clk 0:00:50.2]} 26...
cxb4 {[%clk 0:00:46.3]} 27. Rxb4 {[%clk 0:00:47.7]} 27... Qc5+ {[%clk
0:00:40.2]} 28. Kh1 {[%clk 0:00:37.9]} 28... Qf2 {[%clk 0:00:36.8]} 29. Rg1
{[%clk 0:00:33.8]} 29... Rbd8 {[%clk 0:00:34.9]} 30. Rb2 {[%clk 0:00:29.4]}
30... Re7 {[%clk 0:00:27.3]} 31. Rc2 {[%clk 0:00:21.3]} 31... Bf6 {[%clk
0:00:22.9]} 32. Qf5 {[%clk 0:00:18.4]} 32... Kg7 {[%clk 0:00:19.5]} 33. Ne4
{[%clk 0:00:17.8]} 33... Qxc2 {[%clk 0:00:19.5]} 34. Qxf6+ {[%clk 0:00:17.6]}
34... Kg8 {[%clk 0:00:20.1]} 35. Qxe7 {[%clk 0:00:17.7]} 35... Rf8 {[%clk
0:00:20.6]} 36. Nf6+ {[%clk 0:00:17.6]} 36... Kg7 {[%clk 0:00:21]} 37. Qxe5
{[%clk 0:00:17.9]} 1-0

[Event "*** SCC Grand Prix: Titled Tuesday Blitz"]
[Site "Chess.com"]
[Date "2020.10.13"]
[Round "3"]
[White "Fy_Rakotomaharo"]
[Black "banane_verte"]
[Result "1-0"]
[WhiteElo "2653"]
[BlackElo "2430"]
[TimeControl "180+1"]
[EndTime "10:28:45 PDT"]
[Termination "Fy_Rakotomaharo won by checkmate"]

1. e4 {[%clk 0:03:00.9]} 1... e6 {[%clk 0:02:59]} 2. d4 {[%clk 0:03:00.7]} 2...
d5 {[%clk 0:02:59.2]} 3. Nc3 {[%clk 0:03:01.2]} 3... dxe4 {[%clk 0:02:59.4]} 4.
Nxe4 {[%clk 0:03:01.4]} 4... Nd7 {[%clk 0:02:58.7]} 5. Nf3 {[%clk 0:03:00.5]}
5... Ngf6 {[%clk 0:02:57.9]} 6. Bg5 {[%clk 0:03:01]} 6... Be7 {[%clk 0:02:57.3]}
7. Nxf6+ {[%clk 0:02:55.2]} 7... Bxf6 {[%clk 0:02:55.6]} 8. h4 {[%clk
0:02:55.4]} 8... c5 {[%clk 0:02:50.4]} 9. dxc5 {[%clk 0:02:41]} 9... Qa5+ {[%clk
0:02:46]} 10. c3 {[%clk 0:02:40.8]} 10... Qxc5 {[%clk 0:02:46.1]} 11. Bd3 {[%clk
0:02:34.5]} 11... O-O {[%clk 0:02:41.4]} 12. Qc2 {[%clk 0:02:22.8]} 12... h6
{[%clk 0:02:39.3]} 13. O-O-O {[%clk 0:02:11.5]} 13... b5 {[%clk 0:02:22]} 14.
Bh7+ {[%clk 0:01:54.8]} 14... Kh8 {[%clk 0:02:21.7]} 15. Be4 {[%clk 0:01:55]}
15... Rb8 {[%clk 0:02:16]} 16. Bf4 {[%clk 0:01:53.6]} 16... Rb6 {[%clk
0:02:05.7]} 17. Be3 {[%clk 0:01:51.6]} 17... Qc7 {[%clk 0:02:04]} 18. Bxb6
{[%clk 0:01:51.2]} 18... Qxb6 {[%clk 0:02:04.5]} 19. Rd2 {[%clk 0:01:33.9]}
19... Nc5 {[%clk 0:02:00.4]} 20. Rhd1 {[%clk 0:01:33.1]} 20... b4 {[%clk
0:01:49.5]} 21. Rd6 {[%clk 0:01:32.3]} 21... Qa5 {[%clk 0:01:44.3]} 22. cxb4
{[%clk 0:01:13.2]} 22... Qxa2 {[%clk 0:01:43.4]} 23. bxc5 {[%clk 0:01:07.7]}
23... e5 {[%clk 0:01:33.2]} 24. Bd5 {[%clk 0:00:41.9]} 24... Qa1+ {[%clk
0:01:28.3]} 25. Qb1 {[%clk 0:00:41]} 25... Qa5 {[%clk 0:01:25.2]} 26. b4 {[%clk
0:00:38.2]} 26... Qa3+ {[%clk 0:01:06]} 27. Qb2 {[%clk 0:00:38.2]} 27... Qa4
{[%clk 0:01:06.5]} 28. Bc6 {[%clk 0:00:32.4]} 28... Qa6 {[%clk 0:01:01.9]} 29.
Bd7 {[%clk 0:00:27.1]} 29... Qc4+ {[%clk 0:01:01.1]} 30. Kb1 {[%clk 0:00:20.2]}
30... Bb7 {[%clk 0:00:46.6]} 31. c6 {[%clk 0:00:18.7]} 31... Ba6 {[%clk
0:00:43.1]} 32. c7 {[%clk 0:00:19.1]} 32... e4 {[%clk 0:00:42.3]} 33. Rxf6
{[%clk 0:00:19]} 33... gxf6 {[%clk 0:00:31.5]} 34. Nd4 {[%clk 0:00:13]} 34...
Qxc7 {[%clk 0:00:27.7]} 35. Nc6 {[%clk 0:00:09.1]} 35... Bd3+ {[%clk 0:00:25.9]}
36. Rxd3 {[%clk 0:00:09.4]} 36... exd3 {[%clk 0:00:26.5]} 37. Qxf6+ {[%clk
0:00:08.4]} 37... Kg8 {[%clk 0:00:27.1]} 38. Ne7+ {[%clk 0:00:08.5]} 38... Kh7
{[%clk 0:00:26.5]} 39. Bf5# {[%clk 0:00:09.4]} 1-0

[Event "*** SCC Grand Prix: Titled Tuesday Blitz"]
[Site "Chess.com"]
[Date "2020.10.13"]
[Round "3"]
[White "natelleka"]
[Black "Unknown_IM"]
[Result "0-1"]
[WhiteElo "2179"]
[BlackElo "2348"]
[TimeControl "180+1"]
[EndTime "10:28:46 PDT"]
[Termination "Unknown_IM won on time"]

1. e4 {[%clk 0:02:59.2]} 1... e5 {[%clk 0:02:59.5]} 2. Nf3 {[%clk 0:02:58.7]}
2... Nc6 {[%clk 0:02:59]} 3. Bb5 {[%clk 0:02:58.7]} 3... a6 {[%clk 0:02:58.4]}
4. Ba4 {[%clk 0:02:58.7]} 4... Nf6 {[%clk 0:02:58]} 5. O-O {[%clk 0:02:59]} 5...
Be7 {[%clk 0:02:57.7]} 6. Re1 {[%clk 0:02:59.3]} 6... b5 {[%clk 0:02:50.4]} 7.
Bb3 {[%clk 0:02:59]} 7... d6 {[%clk 0:02:50.4]} 8. c3 {[%clk 0:02:59.1]} 8...
O-O {[%clk 0:02:48.9]} 9. h3 {[%clk 0:02:59.4]} 9... Nb8 {[%clk 0:02:47.3]} 10.
d4 {[%clk 0:02:59.2]} 10... Nbd7 {[%clk 0:02:47.1]} 11. Nbd2 {[%clk 0:02:54.7]}
11... Bb7 {[%clk 0:02:46.4]} 12. d5 {[%clk 0:02:51.5]} 12... c6 {[%clk
0:02:45.1]} 13. dxc6 {[%clk 0:02:50.9]} 13... Bxc6 {[%clk 0:02:44.6]} 14. Nh4
{[%clk 0:02:31.8]} 14... Nc5 {[%clk 0:02:39]} 15. Nf5 {[%clk 0:02:25.6]} 15...
Nd3 {[%clk 0:02:00.2]} 16. Re3 {[%clk 0:02:09.8]} 16... Nf4 {[%clk 0:01:57.6]}
17. Rg3 {[%clk 0:01:49.1]} 17... g6 {[%clk 0:01:34.7]} 18. f3 {[%clk 0:00:55.3]}
18... Kh8 {[%clk 0:01:25.1]} 19. Nxe7 {[%clk 0:00:54.1]} 19... Qxe7 {[%clk
0:01:22.4]} 20. Nf1 {[%clk 0:00:41.2]} 20... N6h5 {[%clk 0:01:20.2]} 21. Bxf4
{[%clk 0:00:18]} 21... exf4 {[%clk 0:01:18.8]} 22. Qd4+ {[%clk 0:00:17.7]} 22...
Qe5 {[%clk 0:01:18]} 23. Rg4 {[%clk 0:00:15.4]} 23... Nf6 {[%clk 0:00:55.4]} 24.
Rd1 {[%clk 0:00:12.3]} 24... Nxg4 {[%clk 0:00:54.5]} 25. hxg4 {[%clk 0:00:11.5]}
25... Rad8 {[%clk 0:00:51.7]} 26. Nd2 {[%clk 0:00:09.4]} 26... Qxd4+ {[%clk
0:00:50]} 27. cxd4 {[%clk 0:00:09.3]} 27... d5 {[%clk 0:00:50.9]} 28. e5 {[%clk
0:00:08.4]} 28... f6 {[%clk 0:00:51.2]} 29. exf6 {[%clk 0:00:07.2]} 29... Rxf6
{[%clk 0:00:52.1]} 30. Re1 {[%clk 0:00:07.1]} 30... Rdd6 {[%clk 0:00:49.2]} 31.
Re7 {[%clk 0:00:06.6]} 31... Rfe6 {[%clk 0:00:47.4]} 32. Ra7 {[%clk 0:00:04.8]}
32... Re1+ {[%clk 0:00:47.7]} 33. Kf2 {[%clk 0:00:04.8]} 33... Rde6 {[%clk
0:00:48]} 34. Ne4 {[%clk 0:00:03.8]} 34... Re3 {[%clk 0:00:31.3]} 0-1